[Event "Late-Titled-Tuesday-Blitz-May-28-2024"]
[Site "Chess.com"]
[Date "2024.05.28"]
[Round "5"]
[White "ccccvhhhj"]
[Black "GoValya"]
[Result "1-0"]
[WhiteElo "2452"]
[BlackElo "2227"]
[TimeControl "180+1"]
[EndTime "14:57:01 PDT"]
[Termination "ccccvhhhj won by resignation"]

1. e4 {[%clk 0:02:58]} 1... e6 {[%clk 0:03:00.1]} 2. Nf3 {[%clk 0:02:57.5]} 2...
d5 {[%clk 0:03:00.2]} 3. e5 {[%clk 0:02:58.3]} 3... c5 {[%clk 0:02:59.2]} 4. b4
{[%clk 0:02:59]} 4... Nc6 {[%clk 0:02:54.7]} 5. bxc5 {[%clk 0:02:59]} 5... Bxc5
{[%clk 0:02:54.8]} 6. d4 {[%clk 0:02:59.6]} 6... Bb4+ {[%clk 0:02:55]} 7. c3
{[%clk 0:03:00]} 7... Ba5 {[%clk 0:02:54.5]} 8. Bd3 {[%clk 0:03:00.4]} 8... h6
{[%clk 0:02:54.1]} 9. O-O {[%clk 0:03:00.9]} 9... Nge7 {[%clk 0:02:54.1]} 10.
Ne1 {[%clk 0:02:54.9]} 10... Bd7 {[%clk 0:02:50.5]} 11. Qg4 {[%clk 0:02:49.1]}
11... g6 {[%clk 0:02:38.4]} 12. Qh3 {[%clk 0:02:41.1]} 12... Nf5 {[%clk
0:02:27.6]} 13. Bxf5 {[%clk 0:02:32.7]} 13... exf5 {[%clk 0:02:26.7]} 14. f4
{[%clk 0:02:10.2]} 14... Qb6 {[%clk 0:02:15.5]} 15. Qe3 {[%clk 0:01:52.1]} 15...
Rc8 {[%clk 0:01:54.2]} 16. Nd2 {[%clk 0:01:50.5]} 16... Bxc3 {[%clk 0:01:42.2]}
17. Qxc3 {[%clk 0:01:41.2]} 17... Nxd4 {[%clk 0:01:42.2]} 18. Qe3 {[%clk
0:01:27.2]} 18... Bb5 {[%clk 0:01:30.7]} 19. Kh1 {[%clk 0:01:22]} 19... Bxf1
{[%clk 0:01:12.1]} 20. Nxf1 {[%clk 0:01:22]} 20... Nc2 {[%clk 0:00:59.9]} 21.
Nxc2 {[%clk 0:01:21.1]} 21... Rxc2 {[%clk 0:00:58.7]} 22. Qxb6 {[%clk
0:01:03.3]} 22... axb6 {[%clk 0:00:59.6]} 23. Ne3 {[%clk 0:01:04]} 23... Re2
{[%clk 0:00:55.6]} 24. Kg1 {[%clk 0:00:56.2]} 24... d4 {[%clk 0:00:31.1]} 25.
Kf1 {[%clk 0:00:52.6]} 25... d3 {[%clk 0:00:22.3]} 26. Ba3 {[%clk 0:00:44]}
26... Kd7 {[%clk 0:00:20.1]} 27. Nd5 {[%clk 0:00:35.2]} 27... Kc6 {[%clk
0:00:14.8]} 28. Nb4+ {[%clk 0:00:33.9]} 28... Kb5 {[%clk 0:00:13.3]} 29. Nxd3
{[%clk 0:00:34.8]} 29... Re3 {[%clk 0:00:13.6]} 30. Rb1+ {[%clk 0:00:27.4]}
30... Kc4 {[%clk 0:00:09.1]} 31. Nb2+ {[%clk 0:00:26.9]} 31... Kd4 {[%clk
0:00:07.7]} 32. Bd6 {[%clk 0:00:23.2]} 32... Rc8 {[%clk 0:00:06]} 33. Rd1+
{[%clk 0:00:23.8]} 33... Ke4 {[%clk 0:00:06.1]} 34. Na4 {[%clk 0:00:09]} 34...
Rc2 {[%clk 0:00:05.3]} 35. Nxb6 {[%clk 0:00:09.4]} 35... Ree2 {[%clk 0:00:04.7]}
36. Re1 {[%clk 0:00:07.6]} 36... Ke3 {[%clk 0:00:03.8]} 37. Rxe2+ {[%clk
0:00:07.4]} 37... Rxe2 {[%clk 0:00:04]} 38. Bc5+ {[%clk 0:00:07.9]} 38... Kd3
{[%clk 0:00:04]} 39. Nd5 {[%clk 0:00:06.1]} 39... Rb2 {[%clk 0:00:02.3]} 40.
Nb4+ {[%clk 0:00:06]} 40... Kc4 {[%clk 0:00:02.5]} 41. Bd6 {[%clk 0:00:05.9]}
41... Rxb4 {[%clk 0:00:02.2]} 42. Bxb4 {[%clk 0:00:06.8]} 42... Kxb4 {[%clk
0:00:03]} 43. h3 {[%clk 0:00:05.7]} 43... Ka3 {[%clk 0:00:03.9]} 44. g4 {[%clk
0:00:06.3]} 44... fxg4 {[%clk 0:00:04.1]} 45. hxg4 {[%clk 0:00:06.7]} 45... Kxa2
{[%clk 0:00:04.3]} 46. f5 {[%clk 0:00:07.4]} 46... gxf5 {[%clk 0:00:03.1]} 47.
gxf5 {[%clk 0:00:08.3]} 47... b5 {[%clk 0:00:03.7]} 48. e6 {[%clk 0:00:09]}
48... fxe6 {[%clk 0:00:04.2]} 49. fxe6 {[%clk 0:00:09.9]} 49... b4 {[%clk
0:00:04.8]} 50. e7 {[%clk 0:00:10.8]} 50... b3 {[%clk 0:00:05.6]} 51. e8=Q
{[%clk 0:00:11.7]} 51... b2 {[%clk 0:00:06.1]} 52. Qa8+ {[%clk 0:00:12]} 52...
Kb1 {[%clk 0:00:06.2]} 53. Ke2 {[%clk 0:00:11.9]} 53... Kc1 {[%clk 0:00:05]} 54.
Qc6+ {[%clk 0:00:11.3]} 54... Kb1 {[%clk 0:00:05]} 55. Kd2 {[%clk 0:00:11.5]}
55... Ka1 {[%clk 0:00:05]} 56. Qa6+ {[%clk 0:00:11.6]} 56... Kb1 {[%clk
0:00:05.4]} 57. Qf1+ {[%clk 0:00:09.5]} 57... Ka2 {[%clk 0:00:05.5]} 58. Kc2
{[%clk 0:00:09.5]} 58... Ka3 {[%clk 0:00:02.8]} 59. Qb1 {[%clk 0:00:10.4]} 1-0

[Event "Late-Titled-Tuesday-Blitz-May-28-2024"]
[Site "Chess.com"]
[Date "2024.05.28"]
[Round "5"]
[White "dennisodessa"]
[Black "Fonsofan"]
[Result "0-1"]
[WhiteElo "2552"]
[BlackElo "2782"]
[TimeControl "180+1"]
[EndTime "14:57:03 PDT"]
[Termination "Fonsofan won by checkmate"]

1. d4 {[%clk 0:03:00.2]} 1... f5 {[%clk 0:02:43.3]} 2. c4 {[%clk 0:02:58.5]}
2... Nf6 {[%clk 0:02:43.7]} 3. Nf3 {[%clk 0:02:58.9]} 3... g6 {[%clk 0:02:43.4]}
4. g3 {[%clk 0:02:58.3]} 4... Bg7 {[%clk 0:02:43.9]} 5. Bg2 {[%clk 0:02:59.2]}
5... O-O {[%clk 0:02:43.4]} 6. O-O {[%clk 0:03:00.1]} 6... d6 {[%clk 0:02:43.4]}
7. Nc3 {[%clk 0:03:01]} 7... Nc6 {[%clk 0:02:43.5]} 8. Qb3 {[%clk 0:03:01.5]}
8... Kh8 {[%clk 0:02:42.6]} 9. Rd1 {[%clk 0:02:59.7]} 9... Bd7 {[%clk
0:02:39.7]} 10. d5 {[%clk 0:02:38.3]} 10... Na5 {[%clk 0:02:38.8]} 11. Qb4
{[%clk 0:02:32.3]} 11... c5 {[%clk 0:02:38.8]} 12. dxc6 {[%clk 0:02:33.1]} 12...
Nxc6 {[%clk 0:02:31.2]} 13. Qxb7 {[%clk 0:02:30]} 13... Na5 {[%clk 0:02:31.1]}
14. Qa6 {[%clk 0:02:09.3]} 14... Rc8 {[%clk 0:02:24.3]} 15. Nd2 {[%clk
0:02:01.2]} 15... Ng4 {[%clk 0:02:17.4]} 16. Qxa7 {[%clk 0:01:57.8]} 16... f4
{[%clk 0:01:50.3]} 17. gxf4 {[%clk 0:01:12.4]} 17... Rxf4 {[%clk 0:01:46.7]} 18.
Nf3 {[%clk 0:01:12.4]} 18... Rfxc4 {[%clk 0:01:43.9]} 19. h3 {[%clk 0:01:04.3]}
19... Ra8 {[%clk 0:01:39.5]} 20. Qxa8 {[%clk 0:00:52.2]} 20... Qxa8 {[%clk
0:01:40.4]} 21. Ne5 {[%clk 0:00:52.7]} 21... Qa7 {[%clk 0:00:50.9]} 22. Nxg4
{[%clk 0:00:26.9]} 22... Bxg4 {[%clk 0:00:50.5]} 23. Be3 {[%clk 0:00:17.4]}
23... Qb8 {[%clk 0:00:50.1]} 24. hxg4 {[%clk 0:00:17.3]} 24... Qxb2 {[%clk
0:00:43.9]} 25. Nd5 {[%clk 0:00:17.4]} 25... Qxa1 {[%clk 0:00:31]} 26. Rxa1
{[%clk 0:00:18.2]} 26... Bxa1 {[%clk 0:00:30.9]} 27. Nxe7 {[%clk 0:00:19]} 27...
Rxg4 {[%clk 0:00:28.4]} 28. Kh2 {[%clk 0:00:16.7]} 28... Ra4 {[%clk 0:00:13.3]}
29. Bd5 {[%clk 0:00:13.4]} 29... Bf6 {[%clk 0:00:13.5]} 30. Nc8 {[%clk
0:00:12.2]} 30... Nc4 {[%clk 0:00:13]} 31. Bf4 {[%clk 0:00:07.4]} 31... Be5
{[%clk 0:00:11.7]} 32. Bxe5+ {[%clk 0:00:07.7]} 32... dxe5 {[%clk 0:00:12.4]}
33. Ne7 {[%clk 0:00:03.2]} 33... Kg7 {[%clk 0:00:12.2]} 34. Nc6 {[%clk
0:00:02.9]} 34... Kf6 {[%clk 0:00:11.7]} 35. Kg2 {[%clk 0:00:02.9]} 35... h5
{[%clk 0:00:08.8]} 36. Kg3 {[%clk 0:00:02.6]} 36... Nd6 {[%clk 0:00:09.1]} 37.
e3 {[%clk 0:00:02]} 37... Nf5+ {[%clk 0:00:08.7]} 38. Kg2 {[%clk 0:00:02.3]}
38... g5 {[%clk 0:00:08.6]} 39. Nd8 {[%clk 0:00:01.2]} 39... Nh4+ {[%clk
0:00:06.5]} 40. Kg3 {[%clk 0:00:01.4]} 40... Nf5+ {[%clk 0:00:06.3]} 41. Kg2
{[%clk 0:00:02.3]} 41... g4 {[%clk 0:00:06.7]} 42. Bb3 {[%clk 0:00:02.6]} 42...
Ra8 {[%clk 0:00:05.9]} 43. Ne6 {[%clk 0:00:03.1]} 43... h4 {[%clk 0:00:04.8]}
44. Nc5 {[%clk 0:00:04]} 44... Nd6 {[%clk 0:00:03.7]} 45. Kh2 {[%clk 0:00:04.9]}
45... Kg5 {[%clk 0:00:03.5]} 46. Nd3 {[%clk 0:00:05]} 46... Ne4 {[%clk
0:00:02.1]} 47. Nxe5 {[%clk 0:00:05.1]} 47... Rf8 {[%clk 0:00:02.6]} 48. Kg2
{[%clk 0:00:06]} 48... Rxf2+ {[%clk 0:00:02.7]} 49. Kg1 {[%clk 0:00:06.9]} 49...
Rb2 {[%clk 0:00:03.1]} 50. Nf7+ {[%clk 0:00:07.8]} 50... Kf6 {[%clk 0:00:02.9]}
51. Nh6 {[%clk 0:00:07.9]} 51... Rb1+ {[%clk 0:00:03.5]} 52. Kg2 {[%clk
0:00:08]} 52... Rb2+ {[%clk 0:00:04.4]} 53. Kg1 {[%clk 0:00:08.5]} 53... Kg5
{[%clk 0:00:04.6]} 54. Nxg4 {[%clk 0:00:09.4]} 54... Kxg4 {[%clk 0:00:04.8]} 55.
Be6+ {[%clk 0:00:10.2]} 55... Kg3 {[%clk 0:00:04.8]} 56. Kf1 {[%clk 0:00:11.1]}
56... Nc3 {[%clk 0:00:04.3]} 57. Ke1 {[%clk 0:00:11.3]} 57... h3 {[%clk
0:00:04.7]} 58. Bxh3 {[%clk 0:00:11.4]} 58... Kxh3 {[%clk 0:00:05.6]} 59. e4
{[%clk 0:00:12]} 59... Rxa2 {[%clk 0:00:05.9]} 60. e5 {[%clk 0:00:12.6]} 60...
Re2+ {[%clk 0:00:05.3]} 61. Kf1 {[%clk 0:00:13]} 61... Rxe5 {[%clk 0:00:06.2]}
62. Kf2 {[%clk 0:00:13.3]} 62... Kg4 {[%clk 0:00:06.3]} 63. Kg2 {[%clk
0:00:13.6]} 63... Re2+ {[%clk 0:00:06.8]} 64. Kf1 {[%clk 0:00:14.5]} 64... Kg3
{[%clk 0:00:07]} 65. Kg1 {[%clk 0:00:15.4]} 65... Re1# {[%clk 0:00:07.8]} 0-1

[Event "Late-Titled-Tuesday-Blitz-May-28-2024"]
[Site "Chess.com"]
[Date "2024.05.28"]
[Round "5"]
[White "ChessSwole"]
[Black "jlf287"]
[Result "0-1"]
[WhiteElo "2674"]
[BlackElo "2524"]
[TimeControl "180+1"]
[EndTime "14:57:06 PDT"]
[Termination "jlf287 won by resignation"]

1. Nf3 {[%clk 0:03:00.9]} 1... Nf6 {[%clk 0:02:59.4]} 2. g3 {[%clk 0:03:01.4]}
2... b6 {[%clk 0:02:59.9]} 3. Bg2 {[%clk 0:03:01.5]} 3... Bb7 {[%clk 0:03:00.6]}
4. c4 {[%clk 0:03:01.2]} 4... g6 {[%clk 0:03:00.9]} 5. d4 {[%clk 0:02:59]} 5...
Bg7 {[%clk 0:03:01.1]} 6. O-O {[%clk 0:02:58.6]} 6... O-O {[%clk 0:03:01.6]} 7.
Nc3 {[%clk 0:02:58.5]} 7... Ne4 {[%clk 0:03:02.2]} 8. Qc2 {[%clk 0:02:55.6]}
8... Nxc3 {[%clk 0:03:01.6]} 9. Qxc3 {[%clk 0:02:56.5]} 9... c5 {[%clk
0:02:58.4]} 10. Be3 {[%clk 0:02:32.7]} 10... Nc6 {[%clk 0:02:53.6]} 11. Rfd1
{[%clk 0:02:26.1]} 11... Qc8 {[%clk 0:02:46.3]} 12. Rac1 {[%clk 0:02:20]} 12...
cxd4 {[%clk 0:02:39.8]} 13. Nxd4 {[%clk 0:02:20.1]} 13... Nxd4 {[%clk
0:02:39.5]} 14. Bxd4 {[%clk 0:02:20]} 14... Bxd4 {[%clk 0:02:36.5]} 15. Qxd4
{[%clk 0:02:20.9]} 15... d6 {[%clk 0:02:27.1]} 16. e4 {[%clk 0:02:14.4]} 16...
Qc5 {[%clk 0:02:25.4]} 17. Qd2 {[%clk 0:02:12.5]} 17... Rac8 {[%clk 0:02:22.1]}
18. b4 {[%clk 0:02:12.3]} 18... Qe5 {[%clk 0:02:19.3]} 19. f4 {[%clk 0:02:10]}
19... Qe6 {[%clk 0:02:14.4]} 20. Qd4 {[%clk 0:02:08.1]} 20... Rc7 {[%clk
0:02:11.2]} 21. Rc3 {[%clk 0:01:55.7]} 21... Rfc8 {[%clk 0:02:09.5]} 22. Rdc1
{[%clk 0:01:55.9]} 22... Ba6 {[%clk 0:01:56.7]} 23. Bf1 {[%clk 0:01:47.1]} 23...
Bb7 {[%clk 0:01:48.1]} 24. Bg2 {[%clk 0:01:44.9]} 24... Ba6 {[%clk 0:01:35.1]}
25. Bf1 {[%clk 0:01:43.3]} 25... Bb7 {[%clk 0:01:30]} 26. Bd3 {[%clk 0:01:43.6]}
26... Qf6 {[%clk 0:01:17.3]} 27. Qxf6 {[%clk 0:01:40]} 27... exf6 {[%clk
0:01:18.2]} 28. Kf2 {[%clk 0:01:37.2]} 28... Re8 {[%clk 0:01:07.7]} 29. Re1
{[%clk 0:01:29.2]} 29... Rce7 {[%clk 0:01:07.7]} 30. c5 {[%clk 0:01:08.4]} 30...
dxc5 {[%clk 0:01:02.8]} 31. bxc5 {[%clk 0:01:08.9]} 31... bxc5 {[%clk
0:00:52.5]} 32. Rxc5 {[%clk 0:00:54.9]} 32... Bxe4 {[%clk 0:00:52.7]} 33. Bxe4
{[%clk 0:00:43.7]} 33... Rxe4 {[%clk 0:00:52.7]} 34. Rxe4 {[%clk 0:00:44.4]}
34... Rxe4 {[%clk 0:00:53]} 35. Ra5 {[%clk 0:00:45.1]} 35... Re7 {[%clk
0:00:53.6]} 36. Kf3 {[%clk 0:00:39.4]} 36... f5 {[%clk 0:00:51.9]} 37. h3 {[%clk
0:00:37]} 37... Rc7 {[%clk 0:00:45.8]} 38. Ra3 {[%clk 0:00:33.3]} 38... Kf8
{[%clk 0:00:44.8]} 39. g4 {[%clk 0:00:33.7]} 39... fxg4+ {[%clk 0:00:39.3]} 40.
hxg4 {[%clk 0:00:34.6]} 40... Kg7 {[%clk 0:00:30.8]} 41. g5 {[%clk 0:00:34.4]}
41... h5 {[%clk 0:00:31.2]} 42. gxh6+ {[%clk 0:00:34.4]} 42... Kxh6 {[%clk
0:00:31.7]} 43. Kg4 {[%clk 0:00:35.1]} 43... Kg7 {[%clk 0:00:29.3]} 44. Ra6
{[%clk 0:00:29.5]} 44... Kf8 {[%clk 0:00:24.3]} 45. Ra5 {[%clk 0:00:23.7]} 45...
Ke7 {[%clk 0:00:22.4]} 46. Kg5 {[%clk 0:00:22.5]} 46... Rb7 {[%clk 0:00:16.7]}
47. Re5+ {[%clk 0:00:18.7]} 47... Kf8 {[%clk 0:00:15.1]} 48. Ra5 {[%clk
0:00:18.7]} 48... Kg7 {[%clk 0:00:15.4]} 49. Ra6 {[%clk 0:00:17.2]} 49... Rb5+
{[%clk 0:00:14.4]} 50. Kg4 {[%clk 0:00:17.9]} 50... Rb7 {[%clk 0:00:14.7]} 51.
Kg5 {[%clk 0:00:17.5]} 51... Rc7 {[%clk 0:00:15.3]} 52. Ra5 {[%clk 0:00:17.4]}
52... Rd7 {[%clk 0:00:14.6]} 53. Ra6 {[%clk 0:00:17]} 53... Re7 {[%clk
0:00:14.5]} 54. Ra5 {[%clk 0:00:16.3]} 54... Rc7 {[%clk 0:00:14.1]} 55. Ra6
{[%clk 0:00:16.4]} 55... Rb7 {[%clk 0:00:13.6]} 56. Ra5 {[%clk 0:00:16.7]} 56...
Kg8 {[%clk 0:00:13.8]} 57. Kf6 {[%clk 0:00:14.6]} 57... Rb6+ {[%clk 0:00:12.3]}
58. Kg5 {[%clk 0:00:15.2]} 58... a6 {[%clk 0:00:11.6]} 59. Kg4 {[%clk
0:00:13.8]} 59... Kg7 {[%clk 0:00:11.6]} 60. Kg5 {[%clk 0:00:14.3]} 60... Rb5+
{[%clk 0:00:11]} 61. Rxb5 {[%clk 0:00:13.6]} 61... axb5 {[%clk 0:00:11.9]} 62.
a3 {[%clk 0:00:11.6]} 62... f6+ {[%clk 0:00:11.1]} 63. Kg4 {[%clk 0:00:12]}
63... Kf7 {[%clk 0:00:10.1]} 64. Kf3 {[%clk 0:00:12.3]} 64... Ke6 {[%clk
0:00:10.2]} 65. Ke4 {[%clk 0:00:12.9]} 65... g5 {[%clk 0:00:09.4]} 66. fxg5
{[%clk 0:00:13.8]} 66... fxg5 {[%clk 0:00:10.3]} 67. Kf3 {[%clk 0:00:14.4]}
67... Kd5 {[%clk 0:00:10.2]} 68. Kg4 {[%clk 0:00:15.1]} 68... Kc4 {[%clk
0:00:10.9]} 69. Kxg5 {[%clk 0:00:16]} 69... Kb3 {[%clk 0:00:11.6]} 70. Kf4
{[%clk 0:00:16.9]} 70... Kxa3 {[%clk 0:00:12.2]} 71. Ke3 {[%clk 0:00:17.8]}
71... b4 {[%clk 0:00:12.9]} 72. Kd2 {[%clk 0:00:18.7]} 72... b3 {[%clk
0:00:13.5]} 73. Kc1 {[%clk 0:00:19]} 73... Ka2 {[%clk 0:00:14.2]} 0-1

[Event "Late-Titled-Tuesday-Blitz-May-28-2024"]
[Site "Chess.com"]
[Date "2024.05.28"]
[Round "5"]
[White "Zorbos"]
[Black "Kirill_Klukin"]
[Result "1-0"]
[WhiteElo "2745"]
[BlackElo "2883"]
[TimeControl "180+1"]
[EndTime "14:57:12 PDT"]
[Termination "Zorbos won by resignation"]

1. e4 {[%clk 0:03:00.9]} 1... e6 {[%clk 0:03:00.3]} 2. d4 {[%clk 0:03:00.6]}
2... d5 {[%clk 0:03:01.1]} 3. Nc3 {[%clk 0:03:01.1]} 3... Nf6 {[%clk 0:03:00.7]}
4. Bg5 {[%clk 0:03:00.8]} 4... dxe4 {[%clk 0:02:58.7]} 5. Nxe4 {[%clk
0:03:01.7]} 5... Be7 {[%clk 0:02:59.5]} 6. Bxf6 {[%clk 0:03:02.1]} 6... gxf6
{[%clk 0:03:00.4]} 7. Nf3 {[%clk 0:03:01.9]} 7... f5 {[%clk 0:03:00.8]} 8. Nc3
{[%clk 0:03:01.9]} 8... a6 {[%clk 0:03:01.3]} 9. Bc4 {[%clk 0:02:59.1]} 9... b5
{[%clk 0:03:00.8]} 10. Bb3 {[%clk 0:02:59.8]} 10... Bb7 {[%clk 0:02:59.1]} 11.
Qe2 {[%clk 0:03:00.3]} 11... b4 {[%clk 0:02:39.3]} 12. Nd1 {[%clk 0:02:49.4]}
12... Nd7 {[%clk 0:02:37.6]} 13. d5 {[%clk 0:02:27.8]} 13... exd5 {[%clk
0:02:07.8]} 14. Ne3 {[%clk 0:02:24.6]} 14... Nf6 {[%clk 0:01:57.8]} 15. Nxf5
{[%clk 0:02:22]} 15... Qd7 {[%clk 0:01:57.2]} 16. Qe5 {[%clk 0:01:47.8]} 16...
Kf8 {[%clk 0:01:37.9]} 17. O-O-O {[%clk 0:01:27.7]} 17... Re8 {[%clk 0:01:25.8]}
18. Qf4 {[%clk 0:01:13.4]} 18... h5 {[%clk 0:01:25.4]} 19. Ne5 {[%clk
0:01:00.7]} 19... Qd8 {[%clk 0:00:58.6]} 20. Kb1 {[%clk 0:00:47.8]} 20... Bd6
{[%clk 0:00:53.1]} 21. Rhe1 {[%clk 0:00:38.3]} 21... Re6 {[%clk 0:00:23.3]} 22.
Qg5 {[%clk 0:00:28.4]} 22... Rh7 {[%clk 0:00:23]} 23. Ng6+ {[%clk 0:00:23.5]}
23... Ke8 {[%clk 0:00:22.3]} 24. Nxd6+ {[%clk 0:00:16.7]} 24... cxd6 {[%clk
0:00:19.6]} 25. Nf4 {[%clk 0:00:12.6]} 25... Rxe1 {[%clk 0:00:07.1]} 26. Rxe1+
{[%clk 0:00:13.5]} 26... Kf8 {[%clk 0:00:07.8]} 27. Re6 {[%clk 0:00:11.1]} 27...
Rg7 {[%clk 0:00:03]} 28. Qxf6 {[%clk 0:00:10.9]} 28... Qxf6 {[%clk 0:00:02.3]}
29. Rxf6 {[%clk 0:00:11.8]} 29... Ke7 {[%clk 0:00:03]} 30. Rf5 {[%clk
0:00:10.2]} 30... d4 {[%clk 0:00:03.9]} 31. f3 {[%clk 0:00:07.4]} 31... h4
{[%clk 0:00:04.1]} 32. h3 {[%clk 0:00:07.2]} 32... Bxf3 {[%clk 0:00:04.3]} 33.
Rxf7+ {[%clk 0:00:02.9]} 33... Rxf7 {[%clk 0:00:02.1]} 34. Bxf7 {[%clk
0:00:03.8]} 34... Be4 {[%clk 0:00:02.8]} 35. Bh5 {[%clk 0:00:03.6]} 35... Kf6
{[%clk 0:00:03.2]} 36. Bf3 {[%clk 0:00:04.1]} 36... Bf5 {[%clk 0:00:03.9]} 37.
Nd5+ {[%clk 0:00:02.8]} 37... Ke5 {[%clk 0:00:04.4]} 38. Nxb4 {[%clk 0:00:03.7]}
38... Kf4 {[%clk 0:00:03.8]} 39. Nxa6 {[%clk 0:00:04]} 39... Bxh3 {[%clk
0:00:03]} 40. Nb4 {[%clk 0:00:02.3]} 40... Bf5 {[%clk 0:00:01]} 41. Ba8 {[%clk
0:00:01.5]} 41... h3 {[%clk 0:00:01.6]} 42. Nd3+ {[%clk 0:00:01.8]} 42... Ke3
{[%clk 0:00:02.4]} 43. g3 {[%clk 0:00:02.1]} 43... Kd2 {[%clk 0:00:03.3]} 44.
Bh1 {[%clk 0:00:02.2]} 44... Ke3 {[%clk 0:00:03.7]} 45. Nf4 {[%clk 0:00:02.4]}
45... Bg4 {[%clk 0:00:04.3]} 46. Nxh3 {[%clk 0:00:02.6]} 46... Bxh3 {[%clk
0:00:05.2]} 47. a4 {[%clk 0:00:03.1]} 47... Bd7 {[%clk 0:00:05.9]} 48. a5 {[%clk
0:00:03.5]} 48... Bc8 {[%clk 0:00:06.5]} 49. b4 {[%clk 0:00:03.5]} 49... Ba6
{[%clk 0:00:06.4]} 50. Bc6 {[%clk 0:00:04.1]} 50... d3 {[%clk 0:00:07]} 51. cxd3
{[%clk 0:00:04.1]} 51... Bxd3+ {[%clk 0:00:07.6]} 52. Kb2 {[%clk 0:00:04.7]}
52... Kd4 {[%clk 0:00:08.2]} 53. b5 {[%clk 0:00:04.2]} 53... Kc5 {[%clk
0:00:08.7]} 54. g4 {[%clk 0:00:01.9]} 54... d5 {[%clk 0:00:08.3]} 55. g5 {[%clk
0:00:02.4]} 55... d4 {[%clk 0:00:08.8]} 56. Kc1 {[%clk 0:00:02.7]} 56... Bg6
{[%clk 0:00:08.7]} 57. a6 {[%clk 0:00:02.8]} 57... Kb6 {[%clk 0:00:08.9]} 58.
Kd2 {[%clk 0:00:03.5]} 58... Bf5 {[%clk 0:00:09.6]} 59. Bd5 {[%clk 0:00:03.6]}
59... Bg6 {[%clk 0:00:08.3]} 60. Bc4 {[%clk 0:00:04.2]} 60... Bf5 {[%clk
0:00:08]} 61. Bd3 {[%clk 0:00:05.1]} 61... Be6 {[%clk 0:00:07.4]} 62. g6 {[%clk
0:00:05.6]} 62... Bg8 {[%clk 0:00:08.1]} 63. g7 {[%clk 0:00:06.4]} 63... Bf7
{[%clk 0:00:08.6]} 64. Bh7 {[%clk 0:00:05.7]} 64... Kxb5 {[%clk 0:00:09.1]} 65.
a7 {[%clk 0:00:06.3]} 65... Be6 {[%clk 0:00:09.2]} 66. a8=Q {[%clk 0:00:07.2]}
1-0

[Event "Late-Titled-Tuesday-Blitz-May-28-2024"]
[Site "Chess.com"]
[Date "2024.05.28"]
[Round "5"]
[White "bancsoo"]
[Black "Oleg_Papayan"]
[Result "1/2-1/2"]
[WhiteElo "2904"]
[BlackElo "2604"]
[TimeControl "180+1"]
[EndTime "14:57:12 PDT"]
[Termination "Game drawn - insufficient material"]

1. Nf3 {[%clk 0:03:00.9]} 1... Nf6 {[%clk 0:02:55.6]} 2. d4 {[%clk 0:03:00.5]}
2... d5 {[%clk 0:02:56]} 3. g3 {[%clk 0:03:00.1]} 3... c5 {[%clk 0:02:56.1]} 4.
Bg2 {[%clk 0:03:00]} 4... cxd4 {[%clk 0:02:56.6]} 5. O-O {[%clk 0:03:00.6]} 5...
h6 {[%clk 0:02:56.7]} 6. b3 {[%clk 0:03:00]} 6... g6 {[%clk 0:02:57]} 7. Bb2
{[%clk 0:02:59]} 7... Bg7 {[%clk 0:02:57.4]} 8. Nxd4 {[%clk 0:02:54.3]} 8... O-O
{[%clk 0:02:45]} 9. e3 {[%clk 0:02:40.2]} 9... e5 {[%clk 0:02:36]} 10. Nf3
{[%clk 0:02:39.9]} 10... e4 {[%clk 0:02:36.4]} 11. Nd4 {[%clk 0:02:39.6]} 11...
Nc6 {[%clk 0:02:31.3]} 12. Nd2 {[%clk 0:02:35.4]} 12... Bg4 {[%clk 0:02:27]} 13.
Qb1 {[%clk 0:02:31.2]} 13... Ne5 {[%clk 0:02:05.6]} 14. Ne6 {[%clk 0:02:19.1]}
14... fxe6 {[%clk 0:01:53.6]} 15. Bxe5 {[%clk 0:02:19]} 15... Nd7 {[%clk
0:01:14.3]} 16. Bxg7 {[%clk 0:02:17.8]} 16... Kxg7 {[%clk 0:01:15.2]} 17. Qb2+
{[%clk 0:02:11.7]} 17... Qf6 {[%clk 0:01:14.1]} 18. Qxf6+ {[%clk 0:01:55.1]}
18... Rxf6 {[%clk 0:01:15]} 19. Rae1 {[%clk 0:01:22.6]} 19... Rc8 {[%clk
0:01:09.5]} 20. c4 {[%clk 0:01:17.9]} 20... Ne5 {[%clk 0:01:09.7]} 21. h3 {[%clk
0:01:17.7]} 21... Bf3 {[%clk 0:01:03.1]} 22. Bxf3 {[%clk 0:01:17.8]} 22... Nxf3+
{[%clk 0:00:49.4]} 23. Nxf3 {[%clk 0:01:17.3]} 23... Rxf3 {[%clk 0:00:49.9]} 24.
Rd1 {[%clk 0:01:11.9]} 24... Rc5 {[%clk 0:00:41.7]} 25. Rd4 {[%clk 0:01:07.6]}
25... Kf6 {[%clk 0:00:38.7]} 26. Rc1 {[%clk 0:01:00.8]} 26... Ke5 {[%clk
0:00:33.5]} 27. b4 {[%clk 0:00:59.7]} 27... Rc6 {[%clk 0:00:23.2]} 28. c5 {[%clk
0:00:40]} 28... b6 {[%clk 0:00:14.8]} 29. Rd2 {[%clk 0:00:36.8]} 29... Rf7
{[%clk 0:00:14.5]} 30. Rdc2 {[%clk 0:00:33.4]} 30... b5 {[%clk 0:00:05.6]} 31.
Rc3 {[%clk 0:00:20.2]} 31... Ra6 {[%clk 0:00:04.5]} 32. a3 {[%clk 0:00:19.3]}
32... Rc7 {[%clk 0:00:04.2]} 33. Kf1 {[%clk 0:00:19.1]} 33... Ra4 {[%clk
0:00:03.3]} 34. Ke2 {[%clk 0:00:19.4]} 34... a5 {[%clk 0:00:04]} 35. Rb3 {[%clk
0:00:17.7]} 35... axb4 {[%clk 0:00:03.9]} 36. axb4 {[%clk 0:00:18.6]} 36... Rc6
{[%clk 0:00:02.4]} 37. Rc2 {[%clk 0:00:16.8]} 37... d4 {[%clk 0:00:02.9]} 38.
exd4+ {[%clk 0:00:16.8]} 38... Kxd4 {[%clk 0:00:03.8]} 39. Rd2+ {[%clk
0:00:13.1]} 39... Kc4 {[%clk 0:00:04.1]} 40. Re3 {[%clk 0:00:12.6]} 40... Kxb4
{[%clk 0:00:04.1]} 41. Rxe4+ {[%clk 0:00:12.5]} 41... Kxc5 {[%clk 0:00:04.7]}
42. Re5+ {[%clk 0:00:06.9]} 42... Kb6 {[%clk 0:00:04.1]} 43. Rd8 {[%clk
0:00:04.5]} 43... Ra2+ {[%clk 0:00:02.4]} 44. Kf3 {[%clk 0:00:05]} 44... Ra3+
{[%clk 0:00:02.6]} 45. Kg2 {[%clk 0:00:05.4]} 45... Rb3 {[%clk 0:00:03]} 46.
Rb8+ {[%clk 0:00:05.3]} 46... Ka5 {[%clk 0:00:02.8]} 47. Ra8+ {[%clk 0:00:05.1]}
47... Kb6 {[%clk 0:00:03.1]} 48. Re8 {[%clk 0:00:05.3]} 48... b4 {[%clk
0:00:02.7]} 49. R8xe6 {[%clk 0:00:05.8]} 49... Rc3 {[%clk 0:00:02.8]} 50. Re8
{[%clk 0:00:04.5]} 50... b3 {[%clk 0:00:02.7]} 51. Rb8+ {[%clk 0:00:04.7]} 51...
Kc7 {[%clk 0:00:03.3]} 52. Reb5 {[%clk 0:00:04.9]} 52... Kd6 {[%clk 0:00:01.1]}
53. Rxb3 {[%clk 0:00:05.1]} 53... Rxb3 {[%clk 0:00:01.9]} 54. Rxb3 {[%clk
0:00:05.7]} 54... Ke6 {[%clk 0:00:02.8]} 55. Re3+ {[%clk 0:00:06.3]} 55... Kf6
{[%clk 0:00:03.2]} 56. h4 {[%clk 0:00:07.2]} 56... h5 {[%clk 0:00:03.5]} 57. Ra3
{[%clk 0:00:07.6]} 57... Rd6 {[%clk 0:00:04.2]} 58. Ra5 {[%clk 0:00:08.2]} 58...
Kg7 {[%clk 0:00:04.5]} 59. Kf3 {[%clk 0:00:08.8]} 59... Rf6+ {[%clk 0:00:04.8]}
60. Ke4 {[%clk 0:00:08.5]} 60... Rxf2 {[%clk 0:00:05]} 61. Rg5 {[%clk
0:00:06.4]} 61... Kf6 {[%clk 0:00:04.9]} 62. Ke3 {[%clk 0:00:06.5]} 62... Rf5
{[%clk 0:00:04.9]} 63. Rxf5+ {[%clk 0:00:05.4]} 63... Kxf5 {[%clk 0:00:05.8]}
64. Kf3 {[%clk 0:00:06.1]} 64... g5 {[%clk 0:00:06.4]} 65. hxg5 {[%clk
0:00:06.3]} 65... Kxg5 {[%clk 0:00:07.3]} 66. Kf2 {[%clk 0:00:06.9]} 66... Kg4
{[%clk 0:00:07.8]} 67. Kg2 {[%clk 0:00:07.3]} 67... h4 {[%clk 0:00:08.3]} 68.
gxh4 {[%clk 0:00:08.2]} 68... Kxh4 {[%clk 0:00:09.2]} 1/2-1/2